bitfinex/quotes_BTCUSD_20250408
["timestamp","ask_amount","ask_price","bid_price","bid_amount"]
[1744083301697,1.19601959,80196.0,80195.0,0.000336]
[1744083301862,1.24511959,80196.0,80195.0,0.000336]
[1744083302198,0.61644085,80183.0,80171.0,0.004]
[1744083302400,0.74582955,80183.0,80182.0,0.00038314]
[1744083302668,1.20672955,80183.0,80182.0,0.00038314]
[1744083302920,1.25582955,80183.0,80182.0,1.4e-07]
[1744083303607,1.25782955,80183.0,80182.0,0.00100014]
[1744083304038,1.35067422,80183.0,80182.0,0.00100014]
[1744083304216,1.2920087,80183.0,80182.0,0.00100014]
[1744083304599,0.002,80183.0,80182.0,0.25143214]
[1744083304836,0.002,80183.0,80182.0,0.26390314]
[1744083305038,0.002,80183.0,80182.0,0.26290314]
[1744083305531,0.01247,80187.0,80182.0,0.26190314]
[1744083305900,0.002,80183.0,80182.0,0.00200014]
[1744083306080,0.002,80183.0,80182.0,0.00100014]
[1744083306529,0.261891,80186.0,80182.0,1.4e-07]
[1744083308215,0.261897,80184.0,80182.0,1.4e-07]
[1744083308805,0.012471,80183.0,80182.0,1.4e-07]
[1744083309049,0.1418597,80183.0,80182.0,1.4e-07]
[1744083309593,1.24146082,80183.0,80182.0,1.4e-07]
[1744083309802,0.601936,80172.0,80171.0,0.004]
[1744083310001,1.15766555,80172.0,80171.0,0.00412046]
[1744083311522,1.15766555,80172.0,80171.0,0.00512046]
[1744083311747,1.287071,80172.0,80171.0,0.00512046]
[1744083312188,1.15766555,80172.0,80171.0,0.00512046]
[1744083312690,1.16914898,80172.0,80171.0,0.00612046]
[1744083322774,0.601965,80163.0,80162.0,0.0003358]
[1744083322934,1.35129455,80163.0,80162.0,0.0003358]
[1744083323165,1.4807,80163.0,80162.0,8e-07]
[1744083323342,1.59639929,80163.0,80162.0,8e-07]
[1744083324426,1.60339929,80163.0,80162.0,8e-07]
[1744083325077,1.19202884,80163.0,80149.0,0.0003358]
[1744083325283,0.61654885,80150.0,80149.0,0.0003358]
[1744083325448,0.7313967,80150.0,80149.0,0.0003358]
[1744083326267,0.7313967,80150.0,80149.0,0.0013358]
[1744083326667,0.74359117,80150.0,80149.0,0.0013358]
[1744083327131,0.75813202,80150.0,80149.0,0.0013358]
[1744083327369,0.76088367,80150.0,80149.0,0.0013358]
[1744083327586,0.42088367,80150.0,80149.0,0.0003358]
[1744083327830,0.41988367,80150.0,80149.0,0.0013358]
[1744083328265,0.41288367,80150.0,80149.0,0.0003358]
[1744083328695,0.42788367,80150.0,80149.0,0.0013358]
[1744083328928,0.83268367,80150.0,80149.0,0.0013358]
[1744083329164,0.69400247,80150.0,80149.0,0.0013358]
[1744083329366,0.82340792,80150.0,80149.0,0.0013358]
[1744083329604,1.3345294,80150.0,80149.0,0.0013358]
[1744083330526,1.3425294,80150.0,80149.0,0.0013358]
[1744083331345,1.35546243,80150.0,80149.0,0.0013358]
[1744083332943,0.262076,80129.0,80128.0,0.0003362]
[1744083333137,1.1432647,80129.0,80128.0,0.0003362]
[1744083333369,1.19527476,80129.0,80128.0,0.0003362]
[1744083333576,1.15584247,80129.0,80128.0,0.0003362]
[1744083334253,1.30584247,80129.0,80128.0,0.0007562]
[1744083334617,1.31384247,80129.0,80128.0,0.0007562]
[1744083334966,1.34560692,80129.0,80128.0,0.0017562]
[1744083335747,1.52061237,80129.0,80128.0,0.0017562]
[1744083336517,1.34560692,80129.0,80128.0,0.0017562]
[1744083339656,1.33106607,80129.0,80128.0,0.0017562]
[1744083340193,0.44337777,80129.0,80128.0,0.0017562]
[1744083340399,0.45585677,80129.0,80128.0,0.0017562]
[1744083340812,0.70545377,80129.0,80128.0,0.0017562]
[1744083341263,0.83484247,80129.0,80128.0,0.0017562]
[1744083342433,0.84422913,80129.0,80128.0,0.0017562]
[1744083345715,0.87838728,80129.0,80128.0,0.0017562]
[1744083345854,0.99126913,80129.0,80128.0,0.0017562]
[1744083346504,0.03157777,80129.0,80128.0,0.0142362]
[1744083346705,0.03157777,80129.0,80128.0,0.0631362]
[1744083346909,0.019,80129.0,80128.0,0.0631362]
[1744083347318,0.02995356,80129.0,80128.0,0.0631362]
[1744083347524,0.02195356,80129.0,80128.0,0.0496562]
[1744083347859,0.30792702,80129.0,80128.0,0.0007562]
[1744083348062,0.41041826,80129.0,80128.0,0.0007562]
[1744083348873,0.28102956,80129.0,80128.0,0.0007562]
[1744083349364,0.01895356,80129.0,80128.0,0.2628362]
[1744083349506,0.01895356,80129.0,80128.0,0.0007562]
[1744083350948,0.03143256,80129.0,80128.0,0.0007562]
[1744083354872,0.16082126,80129.0,80128.0,0.0007562]
[1744083355198,1.08336665,80129.0,80128.0,0.0007562]
[1744083357943,1.08336665,80129.0,80128.0,2e-07]
[1744083358181,1.06683042,80129.0,80128.0,2e-07]
[1744083358374,1.19579921,80129.0,80128.0,2e-07]
[1744083358820,1.19338188,80129.0,80128.0,2e-07]
[1744083358998,1.20038188,80129.0,80128.0,2e-07]
[1744083359208,1.20838188,80129.0,80128.0,2e-07]
[1744083359496,1.20138188,80129.0,80128.0,2e-07]
[1744083359803,1.21038188,80129.0,80128.0,2e-07]
[1744083360042,1.23841672,80129.0,80128.0,2e-07]
[1744083360289,0.012482,80115.0,80111.0,0.004]
[1744083360529,0.36702285,80112.0,80111.0,1e-06]
[1744083360779,0.90821155,80112.0,80111.0,0.0001271]
[1744083360994,0.91697421,80112.0,80111.0,0.0001271]
[1744083361217,1.06401421,80112.0,80111.0,0.0001271]
[1744083361678,1.06401421,80112.0,80110.0,5e-07]
[1744083361679,0.262135,80111.0,80110.0,5e-07]
[1744083361908,0.012484,80099.0,80095.0,0.0001681]
[1744083362143,0.61672585,80096.0,80095.0,0.00021083]
[1744083362362,1.15791455,80096.0,80095.0,0.00021083]
[1744083362608,1.16667358,80096.0,80095.0,0.00021083]
[1744083363589,1.18315817,80096.0,80095.0,0.00021083]
[1744083364768,1.33719817,80096.0,80095.0,0.00021083]
[1744083365615,1.33719817,80096.0,80095.0,8.3e-07]
[1744083365616,1.34971173,80096.0,80095.0,8.3e-07]
[1744083365818,1.47911718,80096.0,80095.0,8.3e-07]
[1744083366414,1.34971173,80096.0,80095.0,8.3e-07]
[1744083367219,1.33571173,80096.0,80095.0,8.3e-07]
[1744083367422,1.19767173,80096.0,80095.0,0.00100083]
[1744083367804,1.20667173,80096.0,80095.0,8.3e-07]
[1744083368102,1.33607718,80096.0,80095.0,8.3e-07]
[1744083368379,1.20667173,80096.0,80095.0,8.3e-07]
[1744083368756,0.2622,80091.0,80066.0,0.012489]
[1744083368937,0.8033887,80091.0,80066.0,0.012489]
[1744083369134,0.81200042,80091.0,80068.0,0.012489]
[1744083369337,0.262231,80082.0,80075.0,0.262252]
[1744083369547,0.262231,80082.0,80075.0,0.012488]
[1744083369548,0.012487,80082.0,80075.0,0.012488]
[1744083369754,0.02115392,80082.0,80072.0,0.26226]
[1744083370333,0.02115392,80082.0,80067.0,0.309678]
[1744083370573,0.02715392,80082.0,80070.0,0.012489]
[1744083371405,0.03315392,80082.0,80070.0,0.012489]
[1744083371758,0.03315392,80082.0,80067.0,0.309678]
[1744083371970,0.03315392,80082.0,80067.0,0.059889]
[1744083372347,0.16254262,80082.0,80067.0,0.309679]
[1744083372753,0.57434262,80082.0,80070.0,0.012489]
[1744083372981,0.57434262,80082.0,80072.0,0.012488]
[1744083373177,0.57434262,80082.0,80070.0,0.262267]
[1744083373398,0.57434262,80082.0,80068.0,0.012489]
[1744083375015,0.57434262,80082.0,80067.0,0.309679]
[1744083377790,0.57434262,80082.0,80069.0,0.262271]
[1744083380049,0.43246692,80082.0,80075.0,0.249764]
[1744083380199,0.43246692,80082.0,80081.0,0.0538]
[1744083380417,0.43246692,80082.0,80081.0,0.066287]
[1744083380769,0.4238,80082.0,80081.0,0.1012]
[1744083380964,0.436287,80082.0,80081.0,0.004]
[1744083381169,0.56830091,80082.0,80081.0,0.004]
[1744083382080,0.57030091,80082.0,80081.0,0.004]
[1744083382280,0.42842521,80082.0,80081.0,0.004]
[1744083382482,0.43342521,80082.0,80081.0,0.004]
[1744083382799,0.68316921,80082.0,80081.0,0.004]
[1744083383361,0.69565621,80082.0,80081.0,0.004]
[1744083384010,0.69865621,80082.0,80081.0,0.004]
[1744083384325,0.68965621,80082.0,80081.0,0.004]
[1744083384527,0.27785621,80082.0,80081.0,0.004]
[1744083384744,0.28385621,80082.0,80081.0,0.004]
[1744083385066,0.02162521,80082.0,80081.0,0.004]
[1744083385275,0.02162521,80082.0,80081.0,0.062687]
[1744083385559,0.013,80082.0,80081.0,0.062687]
[1744083385889,0.013,80082.0,80081.0,0.0502]
[1744083386095,0.0271434,80082.0,80081.0,0.0502]
[1744083386316,0.0271434,80082.0,80081.0,0.004]
[1744083386317,0.2768874,80082.0,80081.0,0.004]
[1744083386837,0.4062761,80082.0,80081.0,0.004]
[1744083387179,0.4002761,80082.0,80081.0,0.004]
[1744083387584,0.4022761,80082.0,80081.0,0.004]
[1744083388239,0.4072761,80082.0,80081.0,0.004]
[1744083388470,0.4052761,80082.0,80081.0,0.004]
[1744083388764,0.4102761,80082.0,80081.0,0.004]
[1744083393910,1.17661695,80082.0,80081.0,0.004]
[1744083394442,1.1620761,80082.0,80081.0,0.004]
[1744083394667,1.3091561,80082.0,80081.0,0.004]
[1744083394893,1.41769695,80082.0,80081.0,1e-08]
[1744083395112,0.602293,80063.0,80062.0,0.0001682]
[1744083395330,1.15196261,80063.0,80062.0,0.00058895]
[1744083395755,0.42028091,80063.0,80062.0,0.00058895]
[1744083395920,0.68257391,80063.0,80062.0,0.00058895]
[1744083397666,0.81196261,80063.0,80062.0,0.00058895]
[1744083400029,1.19716261,80063.0,80062.0,0.00058895]
[1744083400235,1.21170346,80063.0,80062.0,0.00058895]
[1744083400455,1.16650346,80063.0,80062.0,0.00058895]
[1744083400682,1.17450346,80063.0,80062.0,0.00058895]
[1744083401189,1.15996261,80063.0,80062.0,0.00058895]
[1744083403366,1.30708261,80063.0,80062.0,0.00058895]
[1744083409586,1.45102891,80063.0,80062.0,0.00058895]
[1744083410141,1.32162346,80063.0,80062.0,0.00058895]
[1744083411257,1.30708261,80063.0,80062.0,0.00058895]
[1744083411687,1.30828261,80063.0,80062.0,0.00058895]
[1744083414175,1.16116261,80063.0,80062.0,0.00058895]
[1744083414627,1.17570346,80063.0,80062.0,0.00058895]
[1744083417656,1.30510891,80063.0,80062.0,0.00058895]
[1744083418537,1.17570346,80063.0,80062.0,0.00058895]
[1744083420566,1.16116261,80063.0,80062.0,0.00058895]
[1744083420826,0.89886961,80063.0,80062.0,0.00058895]
[1744083421046,0.42948091,80063.0,80062.0,0.00058895]
[1744083421763,0.42148091,80063.0,80062.0,0.00058895]
[1744083421989,0.44197091,80063.0,80062.0,0.00058895]
[1744083422236,0.57135961,80063.0,80062.0,0.00058895]
[1744083422410,0.57790046,80063.0,80062.0,0.00058895]
[1744083422768,0.57990046,80063.0,80062.0,0.00058895]
[1744083424208,0.57790046,80063.0,80062.0,0.00058895]
[1744083424411,0.58190046,80063.0,80062.0,0.00058895]
[1744083424748,0.58290046,80063.0,80062.0,0.00058895]
[1744083425230,0.56735961,80063.0,80062.0,0.00058895]
[1744083425437,0.43797091,80063.0,80062.0,0.00058895]
[1744083425679,0.44197091,80063.0,80062.0,0.00058895]
[1744083426123,0.4419716,80063.0,80062.0,0.00058895]
[1744083426379,0.4379716,80063.0,80062.0,0.00058895]
[1744083426859,0.4995603,80063.0,80062.0,0.00058895]
[1744083427104,0.4995603,80063.0,80051.0,0.004]
[1744083427105,0.602328,80052.0,80051.0,0.004]
[1744083427324,0.73994801,80052.0,80051.0,0.00412615]
[1744083427827,0.27055931,80052.0,80051.0,0.00412615]
[1744083428333,0.39994801,80052.0,80051.0,0.00412615]
[1744083428581,0.82866275,80052.0,80051.0,0.00412615]
[1744083428823,1.16429605,80052.0,80051.0,0.00412615]
[1744083429066,1.1838369,80052.0,80051.0,0.00412615]
[1744083429567,1.2295369,80052.0,80051.0,0.00412615]
[1744083431527,1.2295369,80052.0,80051.0,1.5e-07]
[1744083431769,1.2295369,80052.0,80021.0,0.004]
[1744083431770,0.602338,80049.0,80047.0,6.5e-07]
[1744083432019,0.648101,80030.0,80029.0,2e-07]
[1744083432279,1.30525055,80030.0,80029.0,0.00012645]
[1744083432514,1.31309188,80030.0,80029.0,0.00012645]
[1744083433450,1.32223948,80030.0,80029.0,0.00012645]
[1744083434239,1.30568735,80030.0,80029.0,0.00012645]
[1744083434440,1.31818235,80030.0,80029.0,0.00012645]
[1744083434619,1.32218235,80030.0,80029.0,0.00012645]
[1744083435019,1.32518235,80030.0,80029.0,0.00012645]
[1744083435523,1.3106415,80030.0,80029.0,0.00012645]
[1744083435992,1.3066415,80030.0,80029.0,0.00012645]
[1744083436457,1.3036415,80030.0,80029.0,0.00012645]
[1744083436687,1.3086415,80030.0,80029.0,0.00012645]
[1744083437097,1.3146415,80030.0,80029.0,0.00012645]
[1744083438917,1.32918235,80030.0,80029.0,0.00012645]
[1744083440128,1.32418235,80030.0,80029.0,0.00012645]
[1744083440318,1.33018235,80030.0,80029.0,0.00012645]
[1744083440631,1.3156415,80030.0,80029.0,0.00012645]
[1744083440839,0.43164133,80030.0,80029.0,0.00012645]
[1744083441061,0.43164133,80030.0,80029.0,0.05952145]
[1744083441062,0.01984133,80030.0,80029.0,0.05952145]
[1744083441539,0.006,80030.0,80029.0,0.05952145]
[1744083441765,0.013,80030.0,80029.0,0.04702645]
[1744083442000,0.013,80030.0,80029.0,0.30943045]
[1744083442514,0.007,80030.0,80029.0,0.30943045]
[1744083442741,0.012493,80043.0,80037.0,0.262375]
[1744083442977,0.012493,80041.0,80031.0,0.012495]
[1744083443228,0.012493,80041.0,80032.0,0.262395]
[1744083443430,0.249906,80030.0,80029.0,0.04702645]
[1744083443630,0.263401,80030.0,80029.0,0.04702645]
[1744083443837,0.40087144,80030.0,80029.0,0.00012645]
[1744083444075,0.39987144,80030.0,80029.0,0.00012645]
[1744083444588,0.39987144,80030.0,80029.0,0.00112645]
[1744083444792,0.39987144,80030.0,80029.0,0.00012645]
[1744083446538,0.82621229,80030.0,80029.0,0.00012645]
[1744083448167,1.16621229,80030.0,80029.0,0.00012645]
[1744083449241,1.16721229,80030.0,80029.0,0.00012645]
[1744083449420,1.16941298,80030.0,80029.0,0.00012645]
[1744083450362,1.21891298,80030.0,80029.0,0.00012645]
[1744083450557,1.34831843,80030.0,80029.0,0.00012645]
[1744083450784,1.34831843,80030.0,80029.0,4.5e-07]
[1744083451060,1.34731843,80030.0,80029.0,4.5e-07]
[1744083451299,1.22591298,80030.0,80029.0,4.5e-07]
[1744083451517,1.22491298,80030.0,80029.0,4.5e-07]
[1744083451758,1.23291298,80030.0,80029.0,4.5e-07]
[1744083452182,1.22491298,80030.0,80029.0,4.5e-07]
[1744083452399,1.21691298,80030.0,80029.0,4.5e-07]
[1744083452629,1.23291298,80030.0,80029.0,4.5e-07]
[1744083453723,1.18341298,80030.0,80029.0,4.5e-07]
[1744083454821,1.33057298,80030.0,80029.0,4.5e-07]
[1744083455045,1.31603213,80030.0,80029.0,4.5e-07]
[1744083455264,1.33057298,80030.0,80029.0,4.5e-07]
[1744083463502,1.31603213,80030.0,80029.0,4.5e-07]
[1744083464195,1.33057298,80030.0,80029.0,4.5e-07]
[1744083464456,1.18341298,80030.0,80029.0,4.5e-07]
[1744083466662,1.33057298,80030.0,80029.0,4.5e-07]
[1744083467830,0.96353713,80030.0,80029.0,4.5e-07]
[1744083468043,0.97603213,80030.0,80029.0,4.5e-07]
[1744083468252,1.31603213,80030.0,80029.0,4.5e-07]
[1744083469078,1.45997843,80030.0,80029.0,4.5e-07]
[1744083469544,1.33057298,80030.0,80029.0,4.5e-07]
[1744083476817,1.33057298,80030.0,80018.0,0.0001682]
[1744083476818,0.012497,80019.0,80018.0,2e-07]
[1744083477066,0.602495,80001.0,79998.0,0.02342115]
[1744083477253,1.30538455,80001.0,80000.0,0.00029458]
[1744083477461,1.31296575,80001.0,80000.0,0.00029458]
[1744083477817,1.3256142,80001.0,80000.0,0.00029458]
[1744083479739,1.33480427,80001.0,80000.0,0.00029458]
[1744083479945,1.34080427,80001.0,80000.0,0.00029458]
[1744083480681,1.34780427,80001.0,80000.0,0.00029458]
[1744083482976,1.41281964,80001.0,80000.0,0.00029458]
[1744083483312,1.41281964,80001.0,80000.0,0.25029458]
[1744083483313,0.57441835,80001.0,80000.0,0.25029458]
[1744083483532,0.58691735,80001.0,80000.0,0.04879458]
[1744083483826,0.91933615,80001.0,80000.0,0.04879458]
[1744083483971,0.92404736,80001.0,80000.0,0.04879458]
[1744083484178,0.79465866,80001.0,80000.0,0.04879458]
[1744083484497,0.78865866,80001.0,80000.0,0.04879458]
[1744083484672,0.79265866,80001.0,80000.0,0.04879458]
[1744083485281,0.79265866,80001.0,80000.0,0.31129458]
[1744083485282,0.01571121,80001.0,80000.0,0.31129458]
[1744083485694,0.011,80001.0,80000.0,0.06129458]
[1744083485893,0.011,80001.0,80000.0,0.31129458]
[1744083486301,0.01587111,80001.0,80000.0,0.31129458]
[1744083486509,0.00487111,80001.0,80000.0,0.04879458]
[1744083486730,0.02037011,80001.0,80000.0,0.04879458]
[1744083486895,0.74942455,80001.0,80000.0,0.00029458]
[1744083487118,0.75829712,80001.0,80000.0,5.8e-07]
[1744083487308,0.61704985,79997.0,79996.0,0.00012878]
[1744083487512,1.15823855,79997.0,79996.0,0.00012878]
[1744083487736,1.29232255,79997.0,79996.0,0.00012878]
[1744083487939,1.287644,79997.0,79996.0,0.00012878]
[1744083488869,0.61706685,79992.0,79991.0,7.8e-07]
[1744083489018,0.89361555,79992.0,79991.0,7.8e-07]
[1744083489400,1.023021,79992.0,79991.0,7.8e-07]
[1744083490343,0.90861555,79992.0,79991.0,7.8e-07]
[1744083490739,0.90161555,79992.0,79991.0,7.8e-07]
[1744083491192,0.91061555,79992.0,79991.0,7.8e-07]
[1744083491390,0.91061555,79992.0,79970.0,0.0001682]
[1744083491391,0.262558,79982.0,79970.0,0.0001682]
[1744083491543,1.15828677,79982.0,79970.0,0.0001682]
[1744083491739,1.16774735,79982.0,79970.0,0.0001682]
[1744083493637,1.18274735,79982.0,79970.0,0.0001682]
[1744083494414,1.17574735,79982.0,79970.0,0.0001682]
[1744083494625,0.54918792,79982.0,79976.0,0.012503]
[1744083494822,0.56168992,79982.0,79970.0,0.0126722]
[1744083495034,0.56168992,79982.0,79971.0,0.012504]
[1744083495187,0.90168992,79982.0,79971.0,0.012504]
[1744083495528,0.90168992,79982.0,79970.0,0.0126722]
[1744083495736,0.91068992,79982.0,79970.0,0.0126722]
[1744083495931,0.91068992,79982.0,79971.0,0.012504]
[1744083496137,1.16074592,79982.0,79971.0,0.012504]
[1744083496711,1.15174592,79982.0,79971.0,0.012504]
[1744083497114,1.15874592,79982.0,79971.0,0.012504]
[1744083497688,0.89618792,79982.0,79979.0,0.262568]
[1744083497891,0.76679922,79982.0,79980.0,0.0497]
[1744083498499,0.355,79982.0,79980.0,0.0497]
[1744083498719,0.348,79982.0,79980.0,0.0497]
[1744083498924,0.351,79982.0,79980.0,0.0497]
[1744083499341,0.343,79982.0,79980.0,0.0497]
[1744083499540,0.34,79982.0,79980.0,0.0497]
[1744083499832,0.342,79982.0,79980.0,0.0497]
[1744083500061,0.354502,79982.0,79980.0,0.0497]
[1744083500259,0.357502,79982.0,79980.0,0.0497]
[1744083500460,0.607558,79982.0,79980.0,0.0497]
[1744083502154,0.357502,79982.0,79980.0,0.0497]
[1744083502355,0.345,79982.0,79980.0,0.0497]
[1744083502554,0.345,79982.0,79980.0,0.29976]
[1744083502773,0.005,79982.0,79981.0,0.0586704]
[1744083503152,0.005,79982.0,79981.0,0.06117077]
[1744083503362,0.005,79982.0,79981.0,0.0586704]
[1744083503995,0.002,79982.0,79981.0,0.0586704]
[1744083504197,0.002,79982.0,79981.0,0.1880591]
[1744083504538,0.002,79982.0,79981.0,0.2377591]
[1744083504750,0.01274337,80003.0,79998.0,0.0125]
[1744083504955,0.34012562,80001.0,79999.0,0.047]
[1744083505157,0.00469134,80000.0,79996.0,0.26251]
[1744083505536,0.250016,79995.0,79993.0,0.047]
[1744083505718,0.0125,79994.0,79993.0,0.047]
[1744083505918,0.01721592,79994.0,79989.0,0.250034]
[1744083506258,0.00471592,79994.0,79993.0,0.262522]
[1744083506459,0.00471592,79994.0,79991.0,0.262529]
[1744083506834,0.00471592,79994.0,79993.0,0.262522]
[1744083507005,0.002,79995.0,79994.0,0.0125]
[1744083507831,0.00012562,80001.0,79997.0,0.0125]
[1744083508040,0.00480136,80000.0,79997.0,0.0125]
[1744083508248,0.00480136,80000.0,79999.0,0.262503]
[1744083508455,0.01730136,80000.0,79992.0,0.262526]
[1744083508668,0.3525,79998.0,79992.0,0.262526]
[1744083508910,0.00480136,80000.0,79999.0,0.262503]
[1744083509140,0.00012562,80001.0,80000.0,0.0125]
[1744083510189,0.250015,79996.0,79989.0,0.262532]
[1744083510390,0.250015,79996.0,79970.0,0.01275979]
[1744083510391,0.012501,79988.0,79981.0,0.0586704]
[1744083510591,0.250031,79990.0,79984.0,0.262551]
[1744083511247,0.34,79995.0,79991.0,0.012501]
[1744083511455,0.34,79995.0,79994.0,0.0125]
[1744083511631,0.34,79995.0,79993.0,0.012501]
[1744083512252,0.34,79995.0,79989.0,0.262532]
[1744083512449,0.34,79995.0,79991.0,0.250027]
[1744083512670,0.34,79995.0,79992.0,0.012501]
[1744083513719,0.001,79995.0,79994.0,0.262518]
[1744083513942,0.00120069,80000.0,79999.0,0.262503]
[1744083514328,0.00600943,80000.0,79999.0,0.262503]
[1744083515317,0.00700943,80000.0,79999.0,0.262503]
[1744083515720,0.00600943,80000.0,79999.0,0.262503]
[1744083516733,0.00700943,80000.0,79999.0,0.262503]
[1744083517644,0.00700943,80000.0,79999.0,0.309503]
[1744083517800,0.00700943,80000.0,79999.0,0.354503]
[1744083518185,0.00220069,80000.0,79999.0,0.354503]
[1744083518900,0.00120069,80000.0,79999.0,0.354503]
[1744083519845,0.00120069,80000.0,79999.0,0.356503]
[1744083521754,0.00120069,80000.0,79999.0,0.4858917]
[1744083523459,0.00120069,80000.0,79999.0,0.1065]
[1744083523682,0.00120069,80000.0,79999.0,0.002]
[1744083523891,0.35864234,80000.0,79999.0,0.002]
[1744083524499,0.35864234,80000.0,79999.0,0.0145]
[1744083524500,0.34614234,80000.0,79999.0,0.0145]
[1744083525197,0.34614234,80000.0,79999.0,0.002]
[1744083525857,0.34614234,80000.0,79997.0,0.250008]
[1744083527347,0.0125,79997.0,79991.0,0.262526]
[1744083527581,0.250009,79998.0,79993.0,0.250019]
[1744083527848,0.250009,79997.0,79986.0,0.250041]
[1744083528093,0.262509,79997.0,79991.0,0.012501]
[1744083528339,0.012501,79989.0,79980.0,0.262562]
[1744083528573,0.262526,79992.0,79983.0,0.262555]
[1744083529035,0.0125,79998.0,79992.0,0.012501]
[1744083529276,0.0125,79994.0,79993.0,0.001]
[1744083529511,0.262506,79998.0,79991.0,0.012501]
[1744083530431,0.004,79992.0,79991.0,0.262526]
[1744083530880,0.262506,79998.0,79991.0,0.262526]
[1744083531090,0.003,79992.0,79991.0,0.262526]
[1744083531518,0.34,79998.0,79993.0,0.26252]
[1744083531738,0.34,79998.0,79994.0,0.0125]
[1744083531930,0.34,79998.0,79995.0,0.0125]
[1744083532164,0.346,79998.0,79997.0,0.250009]
[1744083532364,0.00012562,80001.0,80000.0,0.0125]
[1744083532643,0.00012562,80001.0,79999.0,0.250002]
[1744083532874,0.00012562,80001.0,79995.0,0.262514]
[1744083533086,0.005,79998.0,79995.0,0.262514]
[1744083533236,0.011,79998.0,79995.0,0.262514]
[1744083533643,0.005,79998.0,79997.0,0.250009]
[1744083534039,0.005,79998.0,79996.0,0.0125]
[1744083534303,0.00312562,80001.0,79996.0,0.262509]
[1744083534464,0.00512562,80001.0,79996.0,0.262509]
[1744083534865,0.01562462,80001.0,79995.0,0.262514]
[1744083535069,0.0125,80000.0,79994.0,0.0125]
[1744083535349,0.001,79998.0,79994.0,0.0125]
[1744083535550,0.001,79998.0,79995.0,0.0125]
[1744083535753,0.26262362,80001.0,79995.0,0.0125]
[1744083536100,0.002,79998.0,79995.0,0.0125]
[1744083536412,0.002,79998.0,79997.0,0.262509]
[1744083536934,0.00212562,80001.0,80000.0,0.2625]
[1744083537285,0.00512562,80001.0,80000.0,0.2625]
[1744083537431,0.00312562,80001.0,80000.0,0.2625]
[1744083538446,0.00512562,80001.0,80000.0,0.2625]
[1744083538620,0.00212562,80001.0,80000.0,0.2625]
[1744083539485,0.00512562,80001.0,80000.0,0.2625]
[1744083540897,0.00312562,80001.0,80000.0,0.2625]
[1744083542128,0.00012562,80001.0,80000.0,0.2625]
[1744083542502,0.34,80010.0,80005.0,0.249983]
[1744083542701,0.46948337,80010.0,80005.0,0.249983]
[1744083542992,0.0125,80000.0,79993.0,0.012501]
[1744083543197,0.250005,79999.0,79993.0,0.26252]
[1744083543412,0.250005,79999.0,79970.0,0.0001682]
[1744083543413,0.0125,79999.0,79985.0,0.250046]
[1744083543593,0.262515,79996.0,79989.0,0.012501]
[1744083543732,0.250006,79998.0,79990.0,0.012501]
[1744083544148,0.262506,79998.0,79991.0,0.012501]
[1744083545011,0.012501,79992.0,79985.0,0.262546]
[1744083545235,0.1418897,79992.0,79986.0,0.012502]
[1744083545675,0.262529,79991.0,79985.0,0.262546]
[1744083545866,0.012501,79991.0,79985.0,0.262546]
[1744083546818,0.015501,79991.0,79985.0,0.262546]
[1744083547224,0.015501,79991.0,79986.0,0.012502]
[1744083547628,0.003,79991.0,79987.0,0.25004]
[1744083547789,0.003,79991.0,79987.0,0.262542]
[1744083548197,0.005,79991.0,79987.0,0.262542]
[1744083548571,0.003,79991.0,79987.0,0.262542]
[1744083548778,0.003,79991.0,79989.0,0.250033]
[1744083549089,0.005,79991.0,79989.0,0.250033]
[1744083549310,0.005,79991.0,79990.0,0.012501]
[1744083550065,0.012498,80009.0,79999.0,0.0125]
[1744083550270,0.012498,80008.0,79999.0,0.262503]
[1744083551209,0.262483,80006.0,79999.0,0.262503]
[1744083551640,0.19332217,80000.0,79999.0,0.262503]
[1744083552770,0.0125,79999.0,79986.0,0.012502]
[1744083552993,0.32271087,80000.0,79995.0,0.262512]
[1744083553199,0.012501,79993.0,79985.0,0.012502]
[1744083553758,0.34,79998.0,79988.0,0.250037]
[1744083553961,0.19232217,80000.0,79999.0,0.250003]
[1744083554158,0.19232217,80000.0,79999.0,0.262503]
[1744083554414,0.19332217,80000.0,79999.0,0.262503]
[1744083554589,0.19232217,80000.0,79999.0,0.262503]
[1744083554789,0.34,80006.0,80002.0,0.249992]
[1744083555135,0.602483,80006.0,80001.0,0.012499]
[1744083555779,0.602483,80006.0,80002.0,0.249993]
[1744083555780,0.355499,80006.0,80002.0,0.249993]
[1744083556045,0.355499,80006.0,80001.0,0.012499]
[1744083556241,0.355499,80006.0,80000.0,0.249997]
[1744083556242,0.34,80004.0,80000.0,0.249997]
[1744083558140,0.012499,80005.0,80000.0,0.262497]
[1744083558574,0.003,80004.0,80000.0,0.262497]
[1744083558794,0.005,80004.0,80000.0,0.262497]
[1744083559283,0.352499,80006.0,80002.0,0.249993]
[1744083559722,0.007,80005.0,80004.0,0.262486]
[1744083559933,0.003,80005.0,80004.0,0.262486]
[1744083561174,0.34,80009.0,80004.0,0.262486]
[1744083561175,0.01264589,80010.0,80007.0,0.249977]
[1744083561670,0.01264589,80010.0,80007.0,0.262475]
[1744083563094,0.01864589,80010.0,80007.0,0.262475]
[1744083564504,0.02364589,80010.0,80009.0,0.012498]
[1744083565118,0.02364589,80010.0,80007.0,0.262475]
[1744083565324,0.01764589,80010.0,80007.0,0.262475]
[1744083565624,0.02364589,80010.0,80007.0,0.262475]
[1744083565772,0.01864589,80010.0,80007.0,0.262475]
[1744083566352,0.01264589,80010.0,80007.0,0.262475]
[1744083566590,0.01764589,80010.0,80007.0,0.262475]
[1744083567475,0.01764589,80010.0,80009.0,0.262469]
[1744083567649,0.02364589,80010.0,80009.0,0.262469]
[1744083568419,0.01264589,80010.0,80009.0,0.262469]
[1744083568641,0.01264589,80010.0,80007.0,0.262475]
[1744083568855,0.01764589,80010.0,80007.0,0.262475]
[1744083569319,0.01864589,80010.0,80007.0,0.262475]
[1744083569536,0.02364589,80010.0,80007.0,0.262475]
[1744083570177,0.35864589,80010.0,80006.0,0.012499]
[1744083570414,0.37614389,80010.0,79999.0,0.0125]
[1744083570635,0.37614389,80010.0,79998.0,0.0125]
[1744083570636,0.262486,80004.0,79998.0,0.0125]
[1744083570856,0.250003,79999.0,79992.0,0.262523]
[1744083571079,0.1293887,80003.0,79994.0,0.250017]
[1744083571080,0.2625,80000.0,79994.0,0.250017]
[1744083571280,0.2625,80000.0,79995.0,0.0125]